[Event "*** Titled Tuesday Blitz"]
[Site "Chess.com"]
[Date "2020.12.01"]
[Round "6"]
[White "albi1999"]
[Black "ChelsieMonica"]
[Result "1-0"]
[WhiteElo "2583"]
[BlackElo "2386"]
[TimeControl "180+1"]
[EndTime "11:05:46 PST"]
[Termination "albi1999 won by checkmate"]

1. d4 {[%clk 0:03:00.9]} 1... Nf6 {[%clk 0:02:59.8]} 2. c4 {[%clk 0:02:57.3]}
2... c5 {[%clk 0:02:59.3]} 3. d5 {[%clk 0:02:57.2]} 3... d6 {[%clk 0:02:58.7]}
4. Nc3 {[%clk 0:02:57]} 4... e5 {[%clk 0:02:59.3]} 5. e4 {[%clk 0:02:56.7]} 5...
g6 {[%clk 0:02:59.4]} 6. Be2 {[%clk 0:02:54.4]} 6... Bg7 {[%clk 0:02:59.7]} 7.
Be3 {[%clk 0:02:53.1]} 7... O-O {[%clk 0:03:00.6]} 8. g4 {[%clk 0:02:53.5]} 8...
a6 {[%clk 0:02:57.6]} 9. a4 {[%clk 0:02:52.9]} 9... Nbd7 {[%clk 0:02:47.8]} 10.
h4 {[%clk 0:02:50.8]} 10... h6 {[%clk 0:02:47.4]} 11. Qd2 {[%clk 0:02:48.6]}
11... h5 {[%clk 0:02:44.7]} 12. g5 {[%clk 0:02:45.6]} 12... Nh7 {[%clk
0:02:44.2]} 13. Nh3 {[%clk 0:02:45.6]} 13... f6 {[%clk 0:02:32]} 14. gxf6 {[%clk
0:02:40.8]} 14... Ndxf6 {[%clk 0:02:32.9]} 15. f3 {[%clk 0:02:36.6]} 15... Bd7
{[%clk 0:02:22.6]} 16. O-O-O {[%clk 0:02:29.1]} 16... b5 {[%clk 0:02:22.1]} 17.
cxb5 {[%clk 0:02:25.3]} 17... axb5 {[%clk 0:02:21.7]} 18. Bxb5 {[%clk 0:02:25]}
18... Bxb5 {[%clk 0:02:20.5]} 19. axb5 {[%clk 0:02:25.9]} 19... Nd7 {[%clk
0:02:14.7]} 20. Kc2 {[%clk 0:02:17.4]} 20... Nb6 {[%clk 0:02:12.3]} 21. Qe2
{[%clk 0:02:13]} 21... Na4 {[%clk 0:02:02.8]} 22. Ra1 {[%clk 0:02:02.6]} 22...
Nxc3 {[%clk 0:02:01.5]} 23. bxc3 {[%clk 0:02:02]} 23... Qd7 {[%clk 0:01:58.2]}
24. Ng5 {[%clk 0:01:48.1]} 24... Nxg5 {[%clk 0:01:57.2]} 25. Bxg5 {[%clk
0:01:49]} 25... Rab8 {[%clk 0:01:54.4]} 26. c4 {[%clk 0:01:49]} 26... Ra8 {[%clk
0:01:48.6]} 27. Kb2 {[%clk 0:01:46]} 27... Qb7 {[%clk 0:01:48.3]} 28. Qd3 {[%clk
0:01:38.5]} 28... Kh7 {[%clk 0:01:45.7]} 29. Qb3 {[%clk 0:01:34.5]} 29... Rab8
{[%clk 0:01:33.3]} 30. Ra6 {[%clk 0:01:32.3]} 30... Qd7 {[%clk 0:01:33.2]} 31.
b6 {[%clk 0:01:24]} 31... Rb7 {[%clk 0:01:33.4]} 32. Kc2 {[%clk 0:01:19.1]}
32... Bf6 {[%clk 0:01:23.7]} 33. Bxf6 {[%clk 0:01:18.8]} 33... Rxf6 {[%clk
0:01:24.6]} 34. Qa3 {[%clk 0:00:48.6]} 34... Qd8 {[%clk 0:01:11.9]} 35. Rb1
{[%clk 0:00:43.5]} 35... Rff7 {[%clk 0:01:12.1]} 36. Ra7 {[%clk 0:00:35.6]}
36... Qxh4 {[%clk 0:01:05.8]} 37. Rxb7 {[%clk 0:00:35.3]} 37... Rxb7 {[%clk
0:01:06.7]} 38. Qa6 {[%clk 0:00:35.1]} 38... Qf2+ {[%clk 0:00:58.9]} 39. Kb3
{[%clk 0:00:35.2]} 39... Qxf3+ {[%clk 0:00:58.7]} 40. Ka4 {[%clk 0:00:35.1]}
40... Qf7 {[%clk 0:00:51.9]} 41. Qa8 {[%clk 0:00:28.8]} 41... h4 {[%clk
0:00:38.5]} 42. Ka5 {[%clk 0:00:28.8]} 42... g5 {[%clk 0:00:37.7]} 43. Ka6
{[%clk 0:00:28.3]} 43... Re7 {[%clk 0:00:35.4]} 44. b7 {[%clk 0:00:27.2]} 44...
Qf2 {[%clk 0:00:33]} 45. Kb6 {[%clk 0:00:17.4]} 45... Qc2 {[%clk 0:00:27.9]} 46.
Rb5 {[%clk 0:00:16.8]} 46... Rxb7+ {[%clk 0:00:22.1]} 47. Qxb7+ {[%clk
0:00:17.6]} 47... Kh6 {[%clk 0:00:22.7]} 48. Kc6 {[%clk 0:00:15.9]} 48... h3
{[%clk 0:00:21.8]} 49. Qf7 {[%clk 0:00:14.5]} 49... h2 {[%clk 0:00:21.6]} 50.
Rb8 {[%clk 0:00:14.2]} 50... Qa4+ {[%clk 0:00:21.8]} 51. Kxd6 {[%clk 0:00:14.5]}
51... Qa6+ {[%clk 0:00:21.3]} 52. Kxe5 {[%clk 0:00:13.4]} 52... g4 {[%clk
0:00:17.5]} 53. Rh8+ {[%clk 0:00:11.7]} 53... Kg5 {[%clk 0:00:17.9]} 54. Rh5#
{[%clk 0:00:12.2]} 1-0

[Event "*** Titled Tuesday Blitz"]
[Site "Chess.com"]
[Date "2020.12.01"]
[Round "6"]
[White "garfio2017"]
[Black "amatatanav"]
[Result "1/2-1/2"]
[WhiteElo "2295"]
[BlackElo "2405"]
[TimeControl "180+1"]
[EndTime "11:05:46 PST"]
[Termination "Game drawn by repetition"]

1. e4 {[%clk 0:03:00.9]} 1... c5 {[%clk 0:02:29.3]} 2. c3 {[%clk 0:02:59.2]}
2... Nf6 {[%clk 0:02:27.4]} 3. e5 {[%clk 0:02:59.4]} 3... Nd5 {[%clk 0:02:27.7]}
4. d4 {[%clk 0:02:59.8]} 4... cxd4 {[%clk 0:02:25.8]} 5. cxd4 {[%clk 0:03:00.7]}
5... d6 {[%clk 0:02:24.8]} 6. exd6 {[%clk 0:03:00]} 6... Qxd6 {[%clk 0:02:23.5]}
7. Nc3 {[%clk 0:02:59.9]} 7... Nc6 {[%clk 0:02:17.1]} 8. Nf3 {[%clk 0:02:56.4]}
8... Bg4 {[%clk 0:02:14]} 9. Be2 {[%clk 0:02:56.2]} 9... e6 {[%clk 0:02:08.1]}
10. O-O {[%clk 0:02:55.4]} 10... Be7 {[%clk 0:02:06.3]} 11. h3 {[%clk
0:02:55.3]} 11... Bh5 {[%clk 0:02:05.9]} 12. Be3 {[%clk 0:02:49.3]} 12... O-O
{[%clk 0:01:55.1]} 13. Qb3 {[%clk 0:02:42.3]} 13... Nf4 {[%clk 0:01:27.3]} 14.
Bd1 {[%clk 0:02:30.5]} 14... a6 {[%clk 0:01:13.2]} 15. Ne4 {[%clk 0:02:23.4]}
15... Qc7 {[%clk 0:01:02]} 16. Rc1 {[%clk 0:02:09.8]} 16... Nd5 {[%clk
0:01:01.1]} 17. Ne5 {[%clk 0:01:55]} 17... Bxd1 {[%clk 0:00:58.4]} 18. Rfxd1
{[%clk 0:01:52]} 18... Rfc8 {[%clk 0:00:37.9]} 19. Nxc6 {[%clk 0:01:50.8]} 19...
bxc6 {[%clk 0:00:38.8]} 20. Qc4 {[%clk 0:01:42.4]} 20... Qb6 {[%clk 0:00:34.9]}
21. b3 {[%clk 0:01:37.7]} 21... a5 {[%clk 0:00:34.9]} 22. Nc5 {[%clk 0:01:30.6]}
22... Bxc5 {[%clk 0:00:33.4]} 23. Qxc5 {[%clk 0:01:27.7]} 23... Qb7 {[%clk
0:00:31.5]} 24. Rb1 {[%clk 0:01:19.3]} 24... Ra6 {[%clk 0:00:31.1]} 25. Rdc1
{[%clk 0:01:12.8]} 25... Rb6 {[%clk 0:00:31]} 26. Qxa5 {[%clk 0:01:07.1]} 26...
Ra8 {[%clk 0:00:30.9]} 27. Qd2 {[%clk 0:01:06.7]} 27... Qa6 {[%clk 0:00:30.8]}
28. a4 {[%clk 0:01:00.1]} 28... Rab8 {[%clk 0:00:29.6]} 29. Qc2 {[%clk
0:00:52.7]} 29... Nb4 {[%clk 0:00:22.8]} 30. Qc4 {[%clk 0:00:48.1]} 30... Qb7
{[%clk 0:00:16.1]} 31. h4 {[%clk 0:00:39.6]} 31... Nd5 {[%clk 0:00:15.8]} 32. h5
{[%clk 0:00:38.1]} 32... h6 {[%clk 0:00:16]} 33. a5 {[%clk 0:00:30.4]} 33... Ra6
{[%clk 0:00:15.4]} 34. Qa4 {[%clk 0:00:21.1]} 34... Qb5 {[%clk 0:00:15.4]} 35.
Qxb5 {[%clk 0:00:18.7]} 35... Rxb5 {[%clk 0:00:16.3]} 36. Bd2 {[%clk 0:00:15.2]}
36... Kf8 {[%clk 0:00:16.4]} 37. Rc5 {[%clk 0:00:13.1]} 37... Rxc5 {[%clk
0:00:11.7]} 38. dxc5 {[%clk 0:00:12.8]} 38... Ke7 {[%clk 0:00:12.1]} 39. b4
{[%clk 0:00:12.7]} 39... Kd7 {[%clk 0:00:12.4]} 40. Kf1 {[%clk 0:00:13.1]} 40...
Ra7 {[%clk 0:00:11.9]} 41. Ke2 {[%clk 0:00:13.1]} 41... Nc7 {[%clk 0:00:11.4]}
42. Kd3 {[%clk 0:00:12.2]} 42... Nb5 {[%clk 0:00:11.9]} 43. Kc4 {[%clk
0:00:12.1]} 43... Ke7 {[%clk 0:00:12.3]} 44. Bc3 {[%clk 0:00:11.9]} 44... f6
{[%clk 0:00:12.4]} 45. Rd1 {[%clk 0:00:10.4]} 45... e5 {[%clk 0:00:12.8]} 46. f3
{[%clk 0:00:08.9]} 46... Na3+ {[%clk 0:00:13]} 47. Kb3 {[%clk 0:00:07.9]} 47...
Nb5 {[%clk 0:00:13.9]} 48. Kc4 {[%clk 0:00:08.5]} 48... Rb7 {[%clk 0:00:13.9]}
49. Rd3 {[%clk 0:00:06.8]} 49... Na3+ {[%clk 0:00:13.9]} 50. Kb3 {[%clk
0:00:06.7]} 50... Nb5 {[%clk 0:00:14.8]} 51. Kc4 {[%clk 0:00:07.3]} 51... Ra7
{[%clk 0:00:15.1]} 52. Rd1 {[%clk 0:00:06.8]} 1/2-1/2

[Event "*** Titled Tuesday Blitz"]
[Site "Chess.com"]
[Date "2020.12.01"]
[Round "6"]
[White "HajduIstvanCM"]
[Black "TheCairnTerrier"]
[Result "0-1"]
[WhiteElo "1757"]
[BlackElo "2155"]
[TimeControl "180+1"]
[EndTime "11:05:47 PST"]
[Termination "TheCairnTerrier won on time"]

1. e4 {[%clk 0:03:00.9]} 1... c5 {[%clk 0:02:59.6]} 2. Nf3 {[%clk 0:02:59.4]}
2... e6 {[%clk 0:03:00]} 3. c4 {[%clk 0:02:58]} 3... d6 {[%clk 0:02:58.2]} 4.
Nc3 {[%clk 0:02:56.7]} 4... Nf6 {[%clk 0:02:57]} 5. d4 {[%clk 0:02:55]} 5...
cxd4 {[%clk 0:02:57.9]} 6. Nxd4 {[%clk 0:02:54.3]} 6... Be7 {[%clk 0:02:57.3]}
7. Be2 {[%clk 0:02:52.9]} 7... O-O {[%clk 0:02:55.9]} 8. Be3 {[%clk 0:02:52.4]}
8... b6 {[%clk 0:02:55.8]} 9. f4 {[%clk 0:02:46.1]} 9... Bb7 {[%clk 0:02:55.7]}
10. Bf3 {[%clk 0:02:45.8]} 10... Nbd7 {[%clk 0:02:28.9]} 11. O-O {[%clk
0:02:38.8]} 11... a6 {[%clk 0:02:17.9]} 12. Rc1 {[%clk 0:02:36.5]} 12... Rc8
{[%clk 0:02:16.1]} 13. b3 {[%clk 0:02:31.4]} 13... Qc7 {[%clk 0:02:14.9]} 14.
Qe2 {[%clk 0:02:22.5]} 14... Qb8 {[%clk 0:02:13.4]} 15. Rfe1 {[%clk 0:02:13.1]}
15... Qa8 {[%clk 0:01:47.2]} 16. Bf2 {[%clk 0:02:07.5]} 16... Rfe8 {[%clk
0:01:23.9]} 17. f5 {[%clk 0:01:38.7]} 17... e5 {[%clk 0:01:19.7]} 18. Nc2 {[%clk
0:01:35]} 18... b5 {[%clk 0:01:02.5]} 19. Nd5 {[%clk 0:01:28.8]} 19... Nxd5
{[%clk 0:00:59.8]} 20. cxd5 {[%clk 0:01:21.8]} 20... Bg5 {[%clk 0:00:52.7]} 21.
Be3 {[%clk 0:01:16.2]} 21... Bxe3+ {[%clk 0:00:52.5]} 22. Qxe3 {[%clk
0:01:14.3]} 22... Rc7 {[%clk 0:00:45]} 23. Nb4 {[%clk 0:01:09.4]} 23... Rec8
{[%clk 0:00:41.1]} 24. Rxc7 {[%clk 0:01:07]} 24... Rxc7 {[%clk 0:00:42]} 25. Rc1
{[%clk 0:01:05.9]} 25... Qc8 {[%clk 0:00:42.3]} 26. Nd3 {[%clk 0:00:50.5]} 26...
Rxc1+ {[%clk 0:00:18.4]} 27. Qxc1 {[%clk 0:00:48.5]} 27... Qxc1+ {[%clk
0:00:17.8]} 28. Nxc1 {[%clk 0:00:48.8]} 28... a5 {[%clk 0:00:17.8]} 29. Nd3
{[%clk 0:00:44.4]} 29... b4 {[%clk 0:00:16.6]} 30. Kf2 {[%clk 0:00:40.2]} 30...
Ba6 {[%clk 0:00:16.4]} 31. Ke3 {[%clk 0:00:36.1]} 31... Bxd3 {[%clk 0:00:11]}
32. Kxd3 {[%clk 0:00:34.5]} 32... Nb6 {[%clk 0:00:11.2]} 33. h3 {[%clk
0:00:29.7]} 33... Kf8 {[%clk 0:00:11.1]} 34. g3 {[%clk 0:00:26.2]} 34... f6
{[%clk 0:00:11.7]} 35. Bd1 {[%clk 0:00:17.3]} 35... Ke7 {[%clk 0:00:12.6]} 36.
Ke3 {[%clk 0:00:15.4]} 36... Kd7 {[%clk 0:00:13.5]} 37. Be2 {[%clk 0:00:11.9]}
37... Kc7 {[%clk 0:00:14.4]} 38. Bb5 {[%clk 0:00:11]} 38... Nc8 {[%clk
0:00:11.7]} 39. Bd3 {[%clk 0:00:05.2]} 39... Kb6 {[%clk 0:00:11.5]} 40. Bc4
{[%clk 0:00:03.5]} 40... Kc5 {[%clk 0:00:11.5]} 41. Kd3 {[%clk 0:00:02.9]} 41...
Nb6 {[%clk 0:00:11.6]} 42. Ba6 {[%clk 0:00:01.8]} 42... a4 {[%clk 0:00:10.5]}
43. Bb7 {[%clk 0:00:01.6]} 43... axb3 {[%clk 0:00:10.3]} 44. axb3 {[%clk
0:00:01.7]} 44... Nd7 {[%clk 0:00:06.5]} 45. Ba6 {[%clk 0:00:01.5]} 45... Nb8
{[%clk 0:00:05.6]} 46. Bc4 {[%clk 0:00:01.1]} 46... Kb6 {[%clk 0:00:04.6]} 0-1

[Event "*** Titled Tuesday Blitz"]
[Site "Chess.com"]
[Date "2020.12.01"]
[Round "6"]
[White "champ2005"]
[Black "BAS8892"]
[Result "1-0"]
[WhiteElo "3011"]
[BlackElo "2718"]
[TimeControl "180+1"]
[EndTime "11:05:49 PST"]
[Termination "champ2005 won by resignation"]

1. c4 {[%clk 0:02:55.3]} 1... Nf6 {[%clk 0:02:59]} 2. Nc3 {[%clk 0:02:55.5]}
2... g6 {[%clk 0:02:58.1]} 3. g3 {[%clk 0:02:55.5]} 3... Bg7 {[%clk 0:02:58]} 4.
Bg2 {[%clk 0:02:56.1]} 4... O-O {[%clk 0:02:58.6]} 5. Nf3 {[%clk 0:02:55.8]}
5... d6 {[%clk 0:02:58.9]} 6. d4 {[%clk 0:02:55.9]} 6... Nc6 {[%clk 0:02:58.3]}
7. O-O {[%clk 0:02:56.4]} 7... a6 {[%clk 0:02:58.5]} 8. Qc2 {[%clk 0:02:50.3]}
8... Bf5 {[%clk 0:02:56.8]} 9. e4 {[%clk 0:02:48.3]} 9... Bd7 {[%clk 0:02:56.6]}
10. d5 {[%clk 0:02:47.8]} 10... Na5 {[%clk 0:02:56.1]} 11. Nd2 {[%clk
0:02:48.2]} 11... c5 {[%clk 0:02:55.7]} 12. b3 {[%clk 0:02:47.4]} 12... b5
{[%clk 0:02:51.4]} 13. Bb2 {[%clk 0:02:47.7]} 13... Rb8 {[%clk 0:02:50.5]} 14.
Rab1 {[%clk 0:02:42.8]} 14... e5 {[%clk 0:02:47.1]} 15. dxe6 {[%clk 0:02:32.3]}
15... fxe6 {[%clk 0:02:46.5]} 16. Rfd1 {[%clk 0:02:29.5]} 16... Nc6 {[%clk
0:02:36.2]} 17. Nf3 {[%clk 0:02:24.4]} 17... Qe7 {[%clk 0:02:35.4]} 18. Qd2
{[%clk 0:02:22.5]} 18... Ne8 {[%clk 0:02:27.1]} 19. cxb5 {[%clk 0:02:17.7]}
19... axb5 {[%clk 0:02:26.6]} 20. Ne2 {[%clk 0:01:53.3]} 20... e5 {[%clk
0:02:26.3]} 21. Nc3 {[%clk 0:01:50.8]} 21... Nd4 {[%clk 0:02:26.3]} 22. Nd5
{[%clk 0:01:43]} 22... Qd8 {[%clk 0:02:25.4]} 23. Nxd4 {[%clk 0:01:28.2]} 23...
exd4 {[%clk 0:02:22.6]} 24. Rbc1 {[%clk 0:01:24.7]} 24... Nf6 {[%clk 0:02:14.6]}
25. e5 {[%clk 0:01:18.4]} 25... Nxd5 {[%clk 0:02:10.9]} 26. Bxd5+ {[%clk
0:01:17.5]} 26... Kh8 {[%clk 0:02:10.9]} 27. e6 {[%clk 0:01:15.4]} 27... Be8
{[%clk 0:02:01.2]} 28. Re1 {[%clk 0:01:14.7]} 28... Qe7 {[%clk 0:02:01]} 29. f4
{[%clk 0:01:13.8]} 29... Rf5 {[%clk 0:01:57.2]} 30. Qg2 {[%clk 0:01:09.2]} 30...
Rc8 {[%clk 0:01:55.4]} 31. Bb7 {[%clk 0:01:03.3]} 31... Rc7 {[%clk 0:01:54.1]}
32. Bd5 {[%clk 0:01:03.8]} 32... h6 {[%clk 0:01:51.6]} 33. Be4 {[%clk
0:00:56.7]} 33... Rf6 {[%clk 0:01:38.6]} 34. Bd5 {[%clk 0:00:49]} 34... Kh7
{[%clk 0:01:38.1]} 35. h4 {[%clk 0:00:47.2]} 35... Rf5 {[%clk 0:01:38]} 36. Be4
{[%clk 0:00:45.6]} 36... Rc8 {[%clk 0:01:27.4]} 37. Bxf5 {[%clk 0:00:43.1]}
37... gxf5 {[%clk 0:01:27.5]} 38. Qd5 {[%clk 0:00:42.6]} 38... Qf6 {[%clk
0:01:04.7]} 39. e7 {[%clk 0:00:34.5]} 39... Bf7 {[%clk 0:01:04.2]} 40. Qb7
{[%clk 0:00:34.2]} 40... Re8 {[%clk 0:01:03.7]} 41. Kf2 {[%clk 0:00:31.6]} 41...
Qg6 {[%clk 0:00:58.6]} 42. Rcd1 {[%clk 0:00:30]} 42... Qg4 {[%clk 0:00:52.6]}
43. Rd3 {[%clk 0:00:25.7]} 43... Bh5 {[%clk 0:00:45.2]} 44. Qxb5 {[%clk
0:00:23.1]} 44... Bf6 {[%clk 0:00:37.5]} 45. Qb7 {[%clk 0:00:23.7]} 45... Kg6
{[%clk 0:00:36.1]} 46. Kg2 {[%clk 0:00:20.1]} 46... Bxh4 {[%clk 0:00:34.9]} 47.
Qd7 {[%clk 0:00:17.9]} 47... Kf7 {[%clk 0:00:31.8]} 48. Qe6+ {[%clk 0:00:17.4]}
48... Kg7 {[%clk 0:00:32.1]} 49. Qxd6 {[%clk 0:00:16.5]} 49... Bf6 {[%clk
0:00:31.6]} 50. Qxc5 {[%clk 0:00:16.6]} 50... Kg6 {[%clk 0:00:26.5]} 51. Bxd4
{[%clk 0:00:15.5]} 51... Bxd4 {[%clk 0:00:24]} 52. Qxd4 {[%clk 0:00:15.4]} 52...
Kh7 {[%clk 0:00:23.9]} 53. Qd5 {[%clk 0:00:14.6]} 53... Bg6 {[%clk 0:00:23.1]}
54. Qe5 {[%clk 0:00:13.9]} 54... Qh5 {[%clk 0:00:21.4]} 55. Qe2 {[%clk
0:00:13.9]} 55... Qxe2+ {[%clk 0:00:20]} 56. Rxe2 {[%clk 0:00:14.8]} 56... Bf7
{[%clk 0:00:20.4]} 57. Rd8 {[%clk 0:00:15]} 57... Kg7 {[%clk 0:00:21.3]} 58.
Rxe8 {[%clk 0:00:14.9]} 58... Bxe8 {[%clk 0:00:22.2]} 59. Re5 {[%clk 0:00:15.5]}
1-0

[Event "*** Titled Tuesday Blitz"]
[Site "Chess.com"]
[Date "2020.12.01"]
[Round "6"]
[White "Lion-Al-Messi"]
[Black "Andro2"]
[Result "1-0"]
[WhiteElo "2585"]
[BlackElo "2404"]
[TimeControl "180+1"]
[EndTime "11:05:49 PST"]
[Termination "Lion-Al-Messi won on time"]

1. e4 {[%clk 0:03:00.9]} 1... c5 {[%clk 0:02:54]} 2. Nf3 {[%clk 0:03:00.8]} 2...
d6 {[%clk 0:02:53.7]} 3. d4 {[%clk 0:03:01.2]} 3... cxd4 {[%clk 0:02:54.2]} 4.
Nxd4 {[%clk 0:03:02.1]} 4... Nf6 {[%clk 0:02:54]} 5. Nc3 {[%clk 0:03:02.7]} 5...
a6 {[%clk 0:02:54.5]} 6. h3 {[%clk 0:03:02.3]} 6... e6 {[%clk 0:02:54]} 7. g4
{[%clk 0:03:01.6]} 7... Nfd7 {[%clk 0:02:54]} 8. Bg2 {[%clk 0:03:00.7]} 8... Be7
{[%clk 0:02:52.8]} 9. Be3 {[%clk 0:03:00.1]} 9... Nc6 {[%clk 0:02:51.7]} 10. Qe2
{[%clk 0:02:59.4]} 10... Qc7 {[%clk 0:02:43.7]} 11. O-O-O {[%clk 0:02:58]} 11...
Rb8 {[%clk 0:02:43.7]} 12. f4 {[%clk 0:02:56.9]} 12... O-O {[%clk 0:02:25.4]}
13. h4 {[%clk 0:02:52.9]} 13... Nxd4 {[%clk 0:02:24.5]} 14. Bxd4 {[%clk
0:02:50.7]} 14... b5 {[%clk 0:02:25]} 15. h5 {[%clk 0:02:43.3]} 15... b4 {[%clk
0:02:24.2]} 16. Nb1 {[%clk 0:02:34.5]} 16... e5 {[%clk 0:02:19]} 17. Be3 {[%clk
0:02:34.4]} 17... exf4 {[%clk 0:02:16.7]} 18. Bxf4 {[%clk 0:02:35.3]} 18... Ne5
{[%clk 0:02:17]} 19. Nd2 {[%clk 0:02:31.6]} 19... Bxg4 {[%clk 0:02:03.7]} 20.
Nf3 {[%clk 0:02:31.4]} 20... Rfc8 {[%clk 0:02:00.5]} 21. Bxe5 {[%clk 0:02:30.4]}
21... dxe5 {[%clk 0:02:00.1]} 22. h6 {[%clk 0:02:25.2]} 22... g6 {[%clk
0:01:59.7]} 23. Rd3 {[%clk 0:02:17.1]} 23... Be6 {[%clk 0:01:55]} 24. Bh3 {[%clk
0:02:12.4]} 24... Qc4 {[%clk 0:01:24.8]} 25. b3 {[%clk 0:01:57.9]} 25... Qc6
{[%clk 0:00:49.1]} 26. Nxe5 {[%clk 0:01:57.1]} 26... Qb5 {[%clk 0:00:30.4]} 27.
Nf3 {[%clk 0:01:29.6]} 27... Qa5 {[%clk 0:00:24.4]} 28. Bxe6 {[%clk 0:01:25.6]}
28... fxe6 {[%clk 0:00:24.5]} 29. Kb1 {[%clk 0:01:21.3]} 29... Rc7 {[%clk
0:00:19.9]} 30. e5 {[%clk 0:01:06.4]} 30... Rbc8 {[%clk 0:00:19.4]} 31. Nd4
{[%clk 0:01:06.6]} 31... Qd5 {[%clk 0:00:17.6]} 32. Rf1 {[%clk 0:00:58.2]} 32...
Rc3 {[%clk 0:00:15.8]} 33. Qg4 {[%clk 0:00:18.2]} 33... Rxd3 {[%clk 0:00:13.6]}
34. cxd3 {[%clk 0:00:19.1]} 34... Rf8 {[%clk 0:00:11.5]} 35. Rxf8+ {[%clk
0:00:18.2]} 35... Bxf8 {[%clk 0:00:11.4]} 36. Qxe6+ {[%clk 0:00:18.3]} 36...
Qxe6 {[%clk 0:00:11.5]} 37. Nxe6 {[%clk 0:00:19.2]} 37... Bxh6 {[%clk
0:00:12.1]} 38. d4 {[%clk 0:00:17.8]} 38... Kf7 {[%clk 0:00:12.1]} 39. d5 {[%clk
0:00:17.4]} 39... Be3 {[%clk 0:00:10.3]} 40. Kc2 {[%clk 0:00:15.1]} 40... h5
{[%clk 0:00:10.7]} 41. Kd3 {[%clk 0:00:15.3]} 41... Bb6 {[%clk 0:00:10.5]} 42.
Ng5+ {[%clk 0:00:14.6]} 42... Ke7 {[%clk 0:00:10.1]} 43. d6+ {[%clk 0:00:15]}
43... Kd7 {[%clk 0:00:10.4]} 44. Ke4 {[%clk 0:00:15.3]} 44... Bd8 {[%clk
0:00:09.3]} 45. Nf3 {[%clk 0:00:10.9]} 45... h4 {[%clk 0:00:09.6]} 46. Kd5
{[%clk 0:00:10.7]} 46... h3 {[%clk 0:00:08.6]} 47. e6+ {[%clk 0:00:10.9]} 47...
Ke8 {[%clk 0:00:09.2]} 48. Ke5 {[%clk 0:00:08.6]} 48... Bb6 {[%clk 0:00:05.7]}
49. Kf6 {[%clk 0:00:06.6]} 49... Bd8+ {[%clk 0:00:01.5]} 50. e7 {[%clk
0:00:06.6]} 1-0

[Event "*** Titled Tuesday Blitz"]
[Site "Chess.com"]
[Date "2020.12.01"]
[Round "6"]
[White "PetrolulSah"]
[Black "MartinMatthiesen"]
[Result "0-1"]
[WhiteElo "2215"]
[BlackElo "2396"]
[TimeControl "180+1"]
[EndTime "11:05:50 PST"]
[Termination "MartinMatthiesen won on time"]

1. d4 {[%clk 0:02:58.7]} 1... Nf6 {[%clk 0:02:57.6]} 2. Nf3 {[%clk 0:02:58.1]}
2... e6 {[%clk 0:02:56.6]} 3. g3 {[%clk 0:02:58.4]} 3... c5 {[%clk 0:02:56]} 4.
Bg2 {[%clk 0:02:58.2]} 4... cxd4 {[%clk 0:02:55.6]} 5. O-O {[%clk 0:02:58.4]}
5... d5 {[%clk 0:02:54.3]} 6. Nxd4 {[%clk 0:02:57.3]} 6... e5 {[%clk 0:02:53.7]}
7. Nb3 {[%clk 0:02:53.7]} 7... Nc6 {[%clk 0:02:52.9]} 8. Nc3 {[%clk 0:02:51.4]}
8... d4 {[%clk 0:02:44.7]} 9. Ne4 {[%clk 0:02:49.6]} 9... Nxe4 {[%clk
0:02:40.5]} 10. Bxe4 {[%clk 0:02:49.7]} 10... Be6 {[%clk 0:02:23.6]} 11. c3
{[%clk 0:02:49.5]} 11... dxc3 {[%clk 0:02:20.3]} 12. bxc3 {[%clk 0:02:48.5]}
12... Be7 {[%clk 0:02:17.3]} 13. Be3 {[%clk 0:02:47.9]} 13... O-O {[%clk
0:02:15.5]} 14. Nc5 {[%clk 0:02:47.5]} 14... Bh3 {[%clk 0:02:05.7]} 15. Re1
{[%clk 0:02:41.5]} 15... Qc7 {[%clk 0:02:01.6]} 16. Qa4 {[%clk 0:02:37.3]} 16...
Rac8 {[%clk 0:01:51.7]} 17. Rab1 {[%clk 0:02:29.6]} 17... Bxc5 {[%clk 0:01:49]}
18. Bxc5 {[%clk 0:02:28]} 18... Rfd8 {[%clk 0:01:48.3]} 19. Red1 {[%clk
0:02:11.9]} 19... Rxd1+ {[%clk 0:01:38]} 20. Rxd1 {[%clk 0:02:11.7]} 20... h6
{[%clk 0:01:32.6]} 21. f3 {[%clk 0:01:56.4]} 21... b6 {[%clk 0:01:28.3]} 22. Bd6
{[%clk 0:01:39.6]} 22... Qd7 {[%clk 0:00:48.3]} 23. Bxe5 {[%clk 0:01:31.5]}
23... Qe7 {[%clk 0:00:48.2]} 24. Bf4 {[%clk 0:01:10.6]} 24... Qc5+ {[%clk
0:00:42.7]} 25. Kh1 {[%clk 0:00:53.4]} 25... Qf2 {[%clk 0:00:41.4]} 26. Rg1
{[%clk 0:00:53.2]} 26... Na5 {[%clk 0:00:41.6]} 27. Qd4 {[%clk 0:00:43.9]} 27...
Qxe2 {[%clk 0:00:38.2]} 28. Be5 {[%clk 0:00:27.6]} 28... Nc6 {[%clk 0:00:32.5]}
29. Bxc6 {[%clk 0:00:22.6]} 29... Rxc6 {[%clk 0:00:31.9]} 30. Qe4 {[%clk
0:00:20.4]} 30... Qxe4 {[%clk 0:00:26]} 31. fxe4 {[%clk 0:00:20.3]} 31... Re6
{[%clk 0:00:26.9]} 32. Bb8 {[%clk 0:00:19.3]} 32... a5 {[%clk 0:00:24.7]} 33.
Ba7 {[%clk 0:00:18.2]} 33... Bg4 {[%clk 0:00:15.6]} 34. Re1 {[%clk 0:00:17.9]}
34... Bf3+ {[%clk 0:00:15]} 35. Kg1 {[%clk 0:00:18.2]} 35... Bxe4 {[%clk
0:00:15.1]} 36. Bxb6 {[%clk 0:00:18]} 36... Rxb6 {[%clk 0:00:15.3]} 37. Rxe4
{[%clk 0:00:17.9]} 37... Rb1+ {[%clk 0:00:15.9]} 38. Kf2 {[%clk 0:00:18]} 38...
Rc1 {[%clk 0:00:15.5]} 39. Ra4 {[%clk 0:00:16.3]} 39... Rxc3 {[%clk 0:00:15.1]}
40. Rxa5 {[%clk 0:00:16]} 40... g6 {[%clk 0:00:15.3]} 41. h4 {[%clk 0:00:15.9]}
41... h5 {[%clk 0:00:14.8]} 42. Ra7 {[%clk 0:00:15.2]} 42... Kg7 {[%clk
0:00:15]} 43. a4 {[%clk 0:00:15.1]} 43... Ra3 {[%clk 0:00:15.1]} 44. a5 {[%clk
0:00:15]} 44... Kf6 {[%clk 0:00:15.5]} 45. a6 {[%clk 0:00:15.1]} 45... Ke6
{[%clk 0:00:15.6]} 46. Ra8 {[%clk 0:00:13.5]} 46... Kf5 {[%clk 0:00:15.3]} 47.
a7 {[%clk 0:00:10.4]} 47... Kg4 {[%clk 0:00:13.8]} 48. Rf8 {[%clk 0:00:10]}
48... Rxa7 {[%clk 0:00:13.2]} 0-1